[Event "GER-ch Blitz 2019"]
[Site "Magdeburg"]
[Date "2019.05.25"]
[Round "19.11"]
[White "Ehmann, Thilo"]
[Black "Stein, Robert"]
[Result "0-1"]
[ECO "C95"]
[WhiteElo "2291"]
[BlackElo "2318"]
[Annotator "NA"]
[PlyCount "98"]
[EventDate "2019.05.25"]
[EventType "tourn"]
[EventCountry "GER"]
[Tiebreak "Number of wins+Number of black wins"]
[SourceTitle "playchess.com"]
[Source "ChessBase"]
[SourceQuality "1"]
[TimeControl "180+2"]

1. e4 {[%emt 0:00:00]} e5 {[%emt 0:00:00]} 2. Nf3 {[%emt 0:00:00]} Nc6 {
[%emt 0:00:00]} 3. Bb5 {[%emt 0:00:00]} a6 {[%emt 0:00:00]} 4. Ba4 {[%emt 0:00:
00]} Nf6 {[%emt 0:00:00]} 5. O-O Be7 6. Re1 {[%emt 0:00:09]} b5 {[%emt 0:00:02]
} 7. Bb3 d6 8. c3 {[%emt 0:00:05]} O-O {[%emt 0:00:02]} 9. h3 {[%emt 0:00:02]}
Nb8 {[%emt 0:00:00]} 10. d4 {[%emt 0:00:04]} Nbd7 {[%emt 0:00:01]} 11. Nbd2 {
[%emt 0:00:04]} Bb7 {[%emt 0:00:00]} 12. Bc2 {[%emt 0:00:08]} Re8 {[%emt 0:00:
01]} 13. Nf1 {[%emt 0:00:02]} Bf8 {[%emt 0:00:01]} 14. Ng3 {[%emt 0:00:01]} g6
{[%emt 0:00:01]} 15. a4 {[%emt 0:00:02]} c5 {[%emt 0:00:04]} 16. d5 {[%emt 0:
00:09]} c4 {[%emt 0:00:02]} 17. Bg5 {[%emt 0:00:21]} Bg7 {[%emt 0:00:01]} 18.
Qd2 {[%emt 0:00:04]} Nc5 {[%emt 0:00:01]} 19. Nh2 {[%emt 0:00:05]} bxa4 {
[%emt 0:00:14]} 20. Bxa4 {[%emt 0:00:05]} Nxa4 {[%emt 0:00:01]} 21. Rxa4 {
[%emt 0:00:01]} Qc7 {[%emt 0:00:05]} 22. Bh6 {[%emt 0:00:11]} Bh8 {[%emt 0:00:
05]} 23. Qe2 {[%emt 0:00:14]} Rec8 {[%emt 0:00:05]} 24. Ngf1 {[%emt 0:00:11]}
Nd7 {[%emt 0:00:17]} 25. Ne3 {[%emt 0:00:13]} Nc5 {[%emt 0:00:04]} 26. Rxc4 {
[%emt 0:00:06]} a5 {[%emt 0:00:00]} 27. b4 {[%emt 0:00:01]} Ba6 {[%emt 0:00:01]
} 28. bxc5 Bxc4 {[%emt 0:00:03]} 29. Nxc4 {[%emt 0:00:40]} Qxc5 {[%emt 0:00:01]
} 30. Ne3 {[%emt 0:00:01]} Qxc3 {[%emt 0:00:06]} 31. Rf1 {[%emt 0:00:11]} a4 {
[%emt 0:00:03]} 32. Qg4 a3 {[%emt 0:00:11]} 33. Nf5 {[%emt 0:00:22]} Qc7 {
[%emt 0:00:01]} 34. Bg5 {[%emt 0:00:25]} f6 {[%emt 0:00:10]} 35. Nh6+ {[%emt 0:
00:04]} Kg7 {[%emt 0:00:01]} 36. Bxf6+ {[%emt 0:00:07]} Kxf6 {[%emt 0:00:49]}
37. f4 Kg7 38. Nf5+ {[%emt 0:00:01]} Kf8 {[%emt 0:00:16]} 39. fxe5 {[%emt 0:00:
01]} Bxe5 {[%emt 0:00:07]} 40. Nxd6+ {[%emt 0:00:02]} Kg7 {[%emt 0:00:01]} 41.
Nxc8 {[%emt 0:00:01]} Qxc8 {[%emt 0:00:07]} 42. Qg5 {[%emt 0:00:04]} Bd4+ {
[%emt 0:00:09]} 43. Kh1 Qd8 {[%emt 0:00:02]} 44. Qd2 {[%emt 0:00:03]} Qb6 {
[%emt 0:00:11]} 45. Ng4 {[%emt 0:00:01]} a2 {[%emt 0:00:06]} 46. Qh6+ {[%emt 0:
00:01]} Kg8 {[%emt 0:00:01]} 47. e5 {[%emt 0:00:00]} Bxe5 {[%emt 0:00:05]} 48.
Nxe5 {[%emt 0:00:08]} a1=Q {[%emt 0:00:00]} 49. Rxa1 {[%emt 0:00:01]} Rxa1+ {
[%emt 0:00:01]} 0-1

[Event "GER-ch Blitz 2019"]
[Site "Magdeburg"]
[Date "2019.05.25"]
[Round "19.12"]
[White "Schmaltz, Roland"]
[Black "Kopylov, Michael"]
[Result "1-0"]
[ECO "B02"]
[WhiteElo "2461"]
[BlackElo "2413"]
[Annotator "ChessBase"]
[PlyCount "101"]
[EventDate "2019.05.25"]
[EventType "tourn"]
[EventCountry "GER"]
[Tiebreak "Number of wins+Number of black wins"]
[SourceTitle "playchess.com"]
[Source "ChessBase"]
[SourceQuality "1"]
[TimeControl "180+2"]

1. e4 {[%emt 0:00:00]} Nf6 {[%emt 0:00:00]} 2. d3 {[%emt 0:00:00]} d5 {[%emt 0:
00:00]} 3. Nd2 {[%emt 0:00:00]} g6 {[%emt 0:00:01]} 4. Ngf3 {[%emt 0:00:01]}
Bg7 {[%emt 0:00:01]} 5. Be2 {[%emt 0:00:01]} O-O 6. O-O {[%emt 0:00:01]} c5 {
[%emt 0:00:02]} 7. Re1 {[%emt 0:00:00]} Nc6 {[%emt 0:00:01]} 8. Bf1 {[%emt 0:
00:01]} e5 {[%emt 0:00:06]} 9. c3 {[%emt 0:00:04]} Re8 {[%emt 0:00:01]} 10.
exd5 {[%emt 0:00:03]} Nxd5 {[%emt 0:00:01]} 11. a4 {[%emt 0:00:02]} h6 {
[%emt 0:00:02]} 12. Nc4 {[%emt 0:00:02]} Qc7 {[%emt 0:00:03]} 13. g3 {[%emt 0:
00:07]} Be6 {[%emt 0:00:01]} 14. a5 {[%emt 0:00:04]} Rad8 {[%emt 0:00:03]} 15.
Qa4 {[%emt 0:00:01]} Kh7 {[%emt 0:00:28]} 16. Nfd2 {[%emt 0:00:03]} f5 {
[%emt 0:00:04]} 17. Bg2 {[%emt 0:00:14]} Bf7 {[%emt 0:00:01]} 18. Nb3 {[%emt 0:
00:05]} b6 {[%emt 0:00:12]} 19. Na3 {[%emt 0:00:09]} Nde7 {[%emt 0:00:14]} 20.
Bf1 {[%emt 0:00:08]} Bxb3 21. Qxb3 {[%emt 0:00:02]} Nxa5 {[%emt 0:00:13]} 22.
Qa4 {[%emt 0:00:05]} Qd7 {[%emt 0:00:08]} 23. Qc2 {[%emt 0:00:06]} Nac6 {
[%emt 0:00:02]} 24. Nc4 {[%emt 0:00:08]} Nd5 {[%emt 0:00:03]} 25. h4 {[%emt 0:
00:08]} Nf6 {[%emt 0:00:01]} 26. Qa4 {[%emt 0:00:08]} Ng4 {[%emt 0:00:11]} 27.
Bg2 {[%emt 0:00:01]} Ne7 {[%emt 0:00:36]} 28. Qxd7 {[%emt 0:00:03]} Rxd7 {
[%emt 0:00:01]} 29. f3 {[%emt 0:00:03]} Nf6 {[%emt 0:00:37]} 30. Nxe5 Rc7 31.
Bf4 {[%emt 0:00:12]} Ned5 {[%emt 0:00:07]} 32. Bd2 {[%emt 0:00:09]} f4 {
[%emt 0:00:09]} 33. g4 {[%emt 0:00:11]} Rce7 {[%emt 0:00:06]} 34. Nc4 {[%emt 0:
00:03]} Re2 {[%emt 0:00:01]} 35. Kf1 {[%emt 0:00:05]} R2e7 {[%emt 0:00:13]} 36.
Rxe7 {[%emt 0:00:04]} Rxe7 {[%emt 0:00:01]} 37. Kf2 {[%emt 0:00:10]} Rd7 {
[%emt 0:00:09]} 38. Bf1 {[%emt 0:00:03]} a5 {[%emt 0:00:02]} 39. Re1 {[%emt 0:
00:06]} a4 {[%emt 0:00:05]} 40. Re6 {[%emt 0:00:06]} b5 {[%emt 0:00:01]} 41.
Ne5 {[%emt 0:00:02]} Rb7 {[%emt 0:00:02]} 42. d4 {[%emt 0:00:08]} cxd4 43. Bd3
{[%emt 0:00:02]} dxc3 {[%emt 0:00:06]} 44. Bxg6+ {[%emt 0:00:02]} Kg8 {[%emt 0:
00:02]} 45. bxc3 {[%emt 0:00:01]} a3 {[%emt 0:00:00]} 46. Ra6 {[%emt 0:00:02]}
b4 {[%emt 0:00:02]} 47. cxb4 {[%emt 0:00:05]} Bf8 {[%emt 0:00:08]} 48. g5 {
[%emt 0:00:09]} hxg5 49. hxg5 {[%emt 0:00:01]} Nd7 {[%emt 0:00:05]} 50. Be4 {
[%emt 0:00:05]} Nxe5 {[%emt 0:00:04]} 51. Bxd5+ {[%emt 0:00:02]} 1-0

[Event "GER-ch Blitz 2019"]
[Site "Magdeburg"]
[Date "2019.05.25"]
[Round "19.13"]
[White "Kirchner, Thomas"]
[Black "Kopylov, Daniel"]
[Result "1-0"]
[ECO "B50"]
[WhiteElo "2311"]
[BlackElo "2263"]
[Annotator "NA"]
[PlyCount "91"]
[EventDate "2019.05.25"]
[EventType "tourn"]
[EventCountry "GER"]
[Tiebreak "Number of wins+Number of black wins"]
[SourceTitle "playchess.com"]
[Source "ChessBase"]
[SourceQuality "1"]
[TimeControl "180+2"]

1. e4 {[%emt 0:00:00]} c5 {[%emt 0:00:00]} 2. Nf3 {[%emt 0:00:00]} d6 {[%emt 0:
00:00]} 3. Bc4 {[%emt 0:00:00]} Nc6 {[%emt 0:00:03]} 4. O-O {[%emt 0:00:03]}
Nf6 {[%emt 0:00:05]} 5. Re1 {[%emt 0:00:02]} e6 {[%emt 0:00:03]} 6. d3 {
[%emt 0:00:02]} Be7 {[%emt 0:00:01]} 7. c3 {[%emt 0:00:01]} Rb8 {[%emt 0:00:02]
} 8. Bb3 {[%emt 0:00:00]} O-O {[%emt 0:00:02]} 9. Bf4 {[%emt 0:00:02]} e5 {
[%emt 0:00:07]} 10. Be3 {[%emt 0:00:03]} h6 {[%emt 0:00:06]} 11. h3 {[%emt 0:
00:01]} d5 {[%emt 0:00:08]} 12. Bc2 {[%emt 0:00:13]} d4 {[%emt 0:00:09]} 13.
Bc1 {[%emt 0:00:06]} Be6 {[%emt 0:00:02]} 14. Nbd2 {[%emt 0:00:02]} b5 {
[%emt 0:00:02]} 15. Nf1 {[%emt 0:00:02]} c4 {[%emt 0:00:01]} 16. Ng3 {[%emt 0:
00:04]} Qc7 {[%emt 0:00:25]} 17. Qe2 {[%emt 0:00:05]} Rfd8 {[%emt 0:00:05]} 18.
cxd4 {[%emt 0:00:06]} exd4 {[%emt 0:00:07]} 19. Bd2 {[%emt 0:00:12]} Rbc8 {
[%emt 0:00:05]} 20. Rac1 {[%emt 0:00:02]} Qd7 {[%emt 0:00:16]} 21. a3 {[%emt 0:
00:03]} a5 {[%emt 0:00:02]} 22. e5 {[%emt 0:00:08]} Nd5 {[%emt 0:00:05]} 23.
Ne4 {[%emt 0:00:03]} c3 {[%emt 0:00:23]} 24. bxc3 {[%emt 0:00:09]} dxc3 {
[%emt 0:00:01]} 25. Nxc3 {[%emt 0:00:07]} Nxc3 {[%emt 0:00:06]} 26. Bxc3 {
[%emt 0:00:02]} Bxa3 {[%emt 0:00:08]} 27. Rcd1 {[%emt 0:00:10]} b4 {[%emt 0:00:
04]} 28. Ba1 {[%emt 0:00:04]} b3 {[%emt 0:00:02]} 29. Bb1 {[%emt 0:00:03]} Bb4
{[%emt 0:00:05]} 30. Rf1 {[%emt 0:00:12]} a4 {[%emt 0:00:01]} 31. d4 {[%emt 0:
00:13]} Ne7 {[%emt 0:00:02]} 32. Bd3 {[%emt 0:00:19]} a3 {[%emt 0:00:04]} 33.
Rb1 {[%emt 0:00:13]} b2 {[%emt 0:00:06]} 34. Bxb2 {[%emt 0:00:00]} axb2 {
[%emt 0:00:01]} 35. Rxb2 {[%emt 0:00:02]} Bc3 {[%emt 0:00:02]} 36. Rc2 {
[%emt 0:00:12]} Bxd4 {[%emt 0:00:06]} 37. Rxc8 {[%emt 0:00:02]} Qxc8 {[%emt 0:
00:07]} 38. Rd1 {[%emt 0:00:09]} g6 {[%emt 0:00:06]} 39. Qd2 {[%emt 0:00:08]}
Kg7 {[%emt 0:00:08]} 40. Qf4 {[%emt 0:00:05]} Ng8 {[%emt 0:00:21]} 41. Nxd4 {
[%emt 0:00:04]} Rd5 {[%emt 0:00:29]} 42. Bc4 {[%emt 0:00:15]} Rd8 {[%emt 0:00:
02]} 43. Bxe6 {[%emt 0:00:04]} fxe6 {[%emt 0:00:02]} 44. Nxe6+ {[%emt 0:00:02]}
Qxe6 {[%emt 0:00:01]} 45. Rxd8 {[%emt 0:00:01]} Ne7 {[%emt 0:00:01]} 46. Qf8+ {
[%emt 0:00:04]} 1-0

[Event "GER-ch Blitz 2019"]
[Site "Magdeburg"]
[Date "2019.05.25"]
[Round "19.14"]
[White "Zelbel, Patrick"]
[Black "Heidrich, Manfred"]
[Result "1/2-1/2"]
[ECO "B22"]
[WhiteElo "2439"]
[BlackElo "2351"]
[Annotator "NA"]
[PlyCount "75"]
[EventDate "2019.05.25"]
[EventType "tourn"]
[EventCountry "GER"]
[Tiebreak "Number of wins+Number of black wins"]
[SourceTitle "playchess.com"]
[Source "ChessBase"]
[SourceQuality "1"]
[TimeControl "180+2"]

1. e4 {[%emt 0:00:00]} c5 {[%emt 0:00:00]} 2. c3 {[%emt 0:00:00]} Nf6 {[%emt 0:
00:00]} 3. e5 {[%emt 0:00:00]} Nd5 {[%emt 0:00:01]} 4. Bc4 {[%emt 0:00:00]} Nb6
{[%emt 0:00:03]} 5. Bb3 {[%emt 0:00:00]} d6 {[%emt 0:00:03]} 6. exd6 {[%emt 0:
00:02]} Qxd6 {[%emt 0:00:03]} 7. Nf3 {[%emt 0:00:00]} Nc6 {[%emt 0:00:01]} 8.
O-O {[%emt 0:00:02]} e5 {[%emt 0:00:05]} 9. Re1 {[%emt 0:00:28]} Be7 {[%emt 0:
00:01]} 10. Qe2 {[%emt 0:00:14]} Bf6 {[%emt 0:00:16]} 11. Na3 {[%emt 0:00:35]}
O-O {[%emt 0:00:05]} 12. d3 {[%emt 0:00:39]} a6 {[%emt 0:00:15]} 13. Be3 {
[%emt 0:00:18]} Bd7 {[%emt 0:00:14]} 14. Rad1 {[%emt 0:00:02]} Rfe8 {[%emt 0:
00:09]} 15. Nd2 {[%emt 0:00:10]} Qf8 {[%emt 0:00:05]} 16. Qf3 {[%emt 0:00:05]}
Be6 {[%emt 0:00:18]} 17. Ne4 {[%emt 0:00:08]} Bxb3 {[%emt 0:00:14]} 18. Nxf6+ {
[%emt 0:00:02]} gxf6 {[%emt 0:00:01]} 19. axb3 {[%emt 0:00:06]} Re6 {[%emt 0:
00:19]} 20. Qh5 {[%emt 0:00:02]} Kh8 {[%emt 0:00:01]} 21. Bh6 {[%emt 0:00:03]}
Qg8 {[%emt 0:00:02]} 22. Be3 {[%emt 0:00:16]} Nd7 {[%emt 0:00:08]} 23. Nc2 {
[%emt 0:00:04]} Qg6 {[%emt 0:00:05]} 24. Qxg6 {[%emt 0:00:05]} hxg6 {[%emt 0:
00:10]} 25. f4 {[%emt 0:00:01]} exf4 {[%emt 0:00:05]} 26. Bxf4 {[%emt 0:00:00]}
Rae8 {[%emt 0:00:01]} 27. Kf2 {[%emt 0:00:01]} Kg7 {[%emt 0:00:07]} 28. h3 {
[%emt 0:00:01]} g5 {[%emt 0:00:06]} 29. Bd2 {[%emt 0:00:04]} Nde5 {[%emt 0:00:
09]} 30. Bc1 {[%emt 0:00:01]} Rd8 {[%emt 0:00:06]} 31. Re3 {[%emt 0:00:01]} Ng6
{[%emt 0:00:04]} 32. Rxe6 {[%emt 0:00:10]} fxe6 33. Be3 b6 {[%emt 0:00:07]} 34.
d4 {[%emt 0:00:01]} cxd4 {[%emt 0:00:02]} 35. Nxd4 {[%emt 0:00:01]} Nxd4 {
[%emt 0:00:04]} 36. Rxd4 {[%emt 0:00:01]} Rxd4 {[%emt 0:00:01]} 37. Bxd4 b5 38.
g3 {[%emt 0:00:18]} 1/2-1/2

[Event "GER-ch Blitz 2019"]
[Site "Magdeburg"]
[Date "2019.05.25"]
[Round "19.15"]
[White "Svane, Frederik"]
[Black "Schulze, Marc"]
[Result "1/2-1/2"]
[ECO "B39"]
[WhiteElo "2342"]
[BlackElo "2220"]
[Annotator "NA"]
[PlyCount "86"]
[EventDate "2019.05.25"]
[EventType "tourn"]
[EventCountry "GER"]
[Tiebreak "Number of wins+Number of black wins"]
[SourceTitle "playchess.com"]
[Source "ChessBase"]
[SourceQuality "1"]
[TimeControl "180+2"]

1. e4 {[%emt 0:00:00]} c5 {[%emt 0:00:00]} 2. Nf3 {[%emt 0:00:01]} g6 {[%emt 0:
00:00]} 3. d4 {[%emt 0:00:01]} cxd4 {[%emt 0:00:00]} 4. Nxd4 {[%emt 0:00:01]}
Bg7 {[%emt 0:00:00]} 5. c4 {[%emt 0:00:01]} Nc6 {[%emt 0:00:02]} 6. Be3 {
[%emt 0:00:01]} Nf6 {[%emt 0:00:00]} 7. Nc3 {[%emt 0:00:00]} Ng4 {[%emt 0:00:
03]} 8. Qxg4 {[%emt 0:00:02]} Nxd4 {[%emt 0:00:01]} 9. Qd1 {[%emt 0:00:01]} e5
{[%emt 0:00:01]} 10. Be2 {[%emt 0:00:12]} O-O {[%emt 0:00:02]} 11. O-O {
[%emt 0:00:03]} d6 {[%emt 0:00:01]} 12. Nd5 {[%emt 0:00:05]} h6 {[%emt 0:00:18]
} 13. Bxd4 {[%emt 0:00:26]} exd4 {[%emt 0:00:01]} 14. Qd3 {[%emt 0:00:02]} Be6
{[%emt 0:00:03]} 15. Rfe1 {[%emt 0:00:21]} Bxd5 {[%emt 0:00:10]} 16. exd5 {
[%emt 0:00:03]} Qh4 {[%emt 0:00:02]} 17. Bf3 {[%emt 0:00:04]} Rfe8 {[%emt 0:00:
06]} 18. g3 {[%emt 0:00:07]} Qf6 {[%emt 0:00:01]} 19. Kg2 {[%emt 0:00:09]} Re7
{[%emt 0:00:09]} 20. Rxe7 {[%emt 0:00:59]} Qxe7 {[%emt 0:00:01]} 21. Qe2 {
[%emt 0:00:13]} Qxe2 {[%emt 0:00:01]} 22. Bxe2 {[%emt 0:00:01]} b6 {[%emt 0:00:
09]} 23. Bd3 {[%emt 0:00:01]} Re8 {[%emt 0:00:01]} 24. Kf3 {[%emt 0:00:01]} Re5
{[%emt 0:00:02]} 25. h4 {[%emt 0:00:02]} h5 {[%emt 0:00:02]} 26. b4 {[%emt 0:
00:08]} Re8 {[%emt 0:00:02]} 27. a4 {[%emt 0:00:04]} Bh6 {[%emt 0:00:05]} 28.
Ra2 {[%emt 0:00:34]} Rb8 {[%emt 0:00:19]} 29. a5 {[%emt 0:00:06]} bxa5 {
[%emt 0:00:01]} 30. b5 {[%emt 0:00:00]} Rb7 {[%emt 0:00:11]} 31. Rxa5 {[%emt 0:
00:01]} Bd2 {[%emt 0:00:02]} 32. Ra6 {[%emt 0:00:01]} Bb4 {[%emt 0:00:02]} 33.
Rc6 {[%emt 0:00:06]} Bc5 {[%emt 0:00:03]} 34. Ke2 {[%emt 0:00:02]} Kg7 {
[%emt 0:00:04]} 35. Kd1 {[%emt 0:00:03]} Rb6 {[%emt 0:00:01]} 36. Rc7 {[%emt 0:
00:02]} a6 {[%emt 0:00:02]} 37. Rc6 {[%emt 0:00:02]} axb5 {[%emt 0:00:04]} 38.
cxb5 {[%emt 0:00:02]} Rb8 {[%emt 0:00:06]} 39. Kc2 {[%emt 0:00:01]} Ra8 {
[%emt 0:00:01]} 40. Kb3 {[%emt 0:00:02]} Ra3+ {[%emt 0:00:01]} 41. Kc2 {
[%emt 0:00:04]} Ra2+ 42. Kb3 Rxf2 43. b6 Rf3 1/2-1/2

[Event "GER-ch Blitz 2019"]
[Site "Magdeburg"]
[Date "2019.05.25"]
[Round "20.1"]
[White "Hebbinghaus, Holger"]
[Black "Gustafsson, Jan"]
[Result "1/2-1/2"]
[ECO "B13"]
[WhiteElo "2310"]
[BlackElo "2639"]
[Annotator "ChessBase"]
[PlyCount "110"]
[EventDate "2019.05.25"]
[EventType "tourn"]
[EventCountry "GER"]
[Tiebreak "Number of wins+Number of black wins"]
[SourceTitle "playchess.com"]
[Source "ChessBase"]
[SourceQuality "1"]
[TimeControl "180+2"]

1. e4 {[%emt 0:00:00]} c6 {[%emt 0:00:00]} 2. d4 {[%emt 0:00:01]} d5 {[%emt 0:
00:00]} 3. exd5 {[%emt 0:00:01]} cxd5 {[%emt 0:00:01]} 4. Bf4 {[%emt 0:00:01]}
Nc6 {[%emt 0:00:04]} 5. c3 {[%emt 0:00:01]} Nf6 {[%emt 0:00:05]} 6. Nd2 {
[%emt 0:00:02]} g6 {[%emt 0:00:12]} 7. Be2 {[%emt 0:00:04]} Bg7 {[%emt 0:00:04]
} 8. h3 {[%emt 0:00:01]} O-O {[%emt 0:00:04]} 9. Ngf3 {[%emt 0:00:01]} Bf5 {
[%emt 0:00:08]} 10. O-O {[%emt 0:00:02]} Rc8 {[%emt 0:00:01]} 11. Re1 {[%emt 0:
00:07]} Ne4 {[%emt 0:00:04]} 12. Bf1 {[%emt 0:00:24]} Re8 {[%emt 0:00:07]} 13.
Nxe4 {[%emt 0:00:16]} Bxe4 14. Nd2 Bf5 {[%emt 0:00:06]} 15. Nb3 {[%emt 0:00:14]
} Qb6 {[%emt 0:00:02]} 16. Qd2 {[%emt 0:00:10]} Na5 {[%emt 0:00:18]} 17. Nxa5 {
[%emt 0:00:27]} Qxa5 {[%emt 0:00:01]} 18. Be5 {[%emt 0:00:23]} f6 {[%emt 0:00:
04]} 19. Bf4 {[%emt 0:00:02]} e5 {[%emt 0:00:05]} 20. dxe5 {[%emt 0:00:07]}
fxe5 {[%emt 0:00:01]} 21. Bg5 {[%emt 0:00:23]} d4 {[%emt 0:00:04]} 22. cxd4 {
[%emt 0:00:06]} Qxd2 {[%emt 0:00:03]} 23. Bxd2 {[%emt 0:00:01]} exd4 {[%emt 0:
00:09]} 24. Rxe8+ {[%emt 0:00:13]} Rxe8 {[%emt 0:00:01]} 25. Bc4+ {[%emt 0:00:
02]} Kh8 {[%emt 0:00:06]} 26. Bb5 {[%emt 0:00:20]} Re5 {[%emt 0:00:09]} 27. a4
{[%emt 0:00:05]} h5 {[%emt 0:00:25]} 28. Kf1 {[%emt 0:00:02]} d3 {[%emt 0:00:
08]} 29. Bc3 {[%emt 0:00:09]} Re2 {[%emt 0:00:03]} 30. Rd1 {[%emt 0:00:09]}
Bxc3 {[%emt 0:00:07]} 31. bxc3 {[%emt 0:00:01]} Ra2 {[%emt 0:00:02]} 32. Bxd3 {
[%emt 0:00:04]} Bxd3+ {[%emt 0:00:15]} 33. Rxd3 {[%emt 0:00:00]} Rxa4 {[%emt 0:
00:05]} 34. Rd8+ {[%emt 0:00:01]} Kg7 {[%emt 0:00:01]} 35. Rd7+ {[%emt 0:00:00]
} Kf6 {[%emt 0:00:01]} 36. Rxb7 {[%emt 0:00:01]} a5 {[%emt 0:00:06]} 37. Ke2 {
[%emt 0:00:02]} Ra2+ {[%emt 0:00:09]} 38. Ke3 {[%emt 0:00:01]} a4 {[%emt 0:00:
01]} 39. Ra7 {[%emt 0:00:03]} h4 {[%emt 0:00:04]} 40. Ra5 {[%emt 0:00:02]} a3 {
[%emt 0:00:03]} 41. g3 {[%emt 0:00:01]} hxg3 {[%emt 0:00:08]} 42. fxg3 {
[%emt 0:00:02]} Ra1 {[%emt 0:00:03]} 43. Kf3 {[%emt 0:00:01]} a2 {[%emt 0:00:
07]} 44. Kg2 {[%emt 0:00:01]} Kg7 {[%emt 0:00:01]} 45. h4 {[%emt 0:00:02]} Kf6
{[%emt 0:00:01]} 46. g4 {[%emt 0:00:02]} Kf7 {[%emt 0:00:02]} 47. Ra6 {[%emt 0:
00:00]} Kg7 {[%emt 0:00:01]} 48. h5 {[%emt 0:00:02]} gxh5 {[%emt 0:00:01]} 49.
gxh5 {[%emt 0:00:01]} Kh7 {[%emt 0:00:01]} 50. c4 {[%emt 0:00:02]} Rc1 {
[%emt 0:00:02]} 51. Rxa2 {[%emt 0:00:01]} Rxc4 {[%emt 0:00:02]} 52. Ra6 {
[%emt 0:00:03]} Rc5 {[%emt 0:00:01]} 53. h6 {[%emt 0:00:01]} Rh5 {[%emt 0:00:
01]} 54. Kg3 {[%emt 0:00:01]} Rxh6 {[%emt 0:00:02]} 55. Rxh6+ {[%emt 0:00:01]}
Kxh6 1/2-1/2

[Event "GER-ch Blitz 2019"]
[Site "Magdeburg"]
[Date "2019.05.25"]
[Round "20.2"]
[White "Krause, Benedict"]
[Black "Barzen, Pascal"]
[Result "1-0"]
[ECO "B17"]
[WhiteElo "2434"]
[BlackElo "2292"]
[Annotator "NA"]
[PlyCount "107"]
[EventDate "2019.05.25"]
[EventType "tourn"]
[EventCountry "GER"]
[Tiebreak "Number of wins+Number of black wins"]
[SourceTitle "playchess.com"]
[Source "ChessBase"]
[SourceQuality "1"]
[TimeControl "180+2"]

1. e4 {[%emt 0:00:00]} c6 {[%emt 0:00:00]} 2. d4 {[%emt 0:00:01]} d5 {[%emt 0:
00:00]} 3. Nd2 {[%emt 0:00:01]} dxe4 {[%emt 0:00:00]} 4. Nxe4 {[%emt 0:00:01]}
Nd7 {[%emt 0:00:00]} 5. Ng5 {[%emt 0:00:02]} Ngf6 {[%emt 0:00:01]} 6. Bd3 {
[%emt 0:00:27]} e6 {[%emt 0:00:02]} 7. N1f3 {[%emt 0:00:04]} Bd6 {[%emt 0:00:
00]} 8. Qe2 {[%emt 0:00:03]} h6 {[%emt 0:00:01]} 9. Ne4 {[%emt 0:00:01]} Nxe4 {
[%emt 0:00:01]} 10. Qxe4 {[%emt 0:00:01]} Qc7 {[%emt 0:00:02]} 11. Bd2 {
[%emt 0:00:05]} b6 {[%emt 0:00:00]} 12. O-O-O {[%emt 0:00:05]} Bb7 {[%emt 0:00:
01]} 13. Qe2 {[%emt 0:00:03]} O-O-O {[%emt 0:00:05]} 14. Kb1 {[%emt 0:00:12]}
Kb8 {[%emt 0:00:02]} 15. Rhe1 {[%emt 0:00:08]} c5 {[%emt 0:00:00]} 16. Be4 {
[%emt 0:00:01]} Nf6 {[%emt 0:00:09]} 17. Bxb7 {[%emt 0:00:02]} Qxb7 {[%emt 0:
00:01]} 18. dxc5 {[%emt 0:00:06]} Bxc5 {[%emt 0:00:04]} 19. Bf4+ {[%emt 0:00:
08]} Ka8 {[%emt 0:00:03]} 20. Ne5 {[%emt 0:00:11]} Rd5 {[%emt 0:00:18]} 21.
Rxd5 {[%emt 0:00:11]} Nxd5 {[%emt 0:00:01]} 22. Bg3 {[%emt 0:00:01]} Rc8 {
[%emt 0:00:13]} 23. Rd1 {[%emt 0:00:18]} f6 {[%emt 0:00:16]} 24. Nd3 {[%emt 0:
00:02]} e5 {[%emt 0:00:04]} 25. Nxc5 {[%emt 0:00:12]} Rxc5 {[%emt 0:00:04]} 26.
f3 {[%emt 0:00:11]} Rc8 {[%emt 0:00:33]} 27. Qe4 {[%emt 0:00:16]} Ne7 {[%emt 0:
00:34]} 28. Rd7 {[%emt 0:00:08]} Qxe4 {[%emt 0:00:01]} 29. fxe4 {[%emt 0:00:01]
} Re8 {[%emt 0:00:21]} 30. Be1 {[%emt 0:00:05]} a5 {[%emt 0:00:06]} 31. Bf2 {
[%emt 0:00:03]} f5 {[%emt 0:00:20]} 32. Bxb6 {[%emt 0:00:15]} fxe4 {[%emt 0:00:
04]} 33. Kc1 {[%emt 0:00:03]} Nf5 {[%emt 0:00:01]} 34. Kd2 {[%emt 0:00:07]} Re6
{[%emt 0:00:05]} 35. Bxa5 {[%emt 0:00:04]} Rg6 {[%emt 0:00:13]} 36. g3 {
[%emt 0:00:01]} h5 {[%emt 0:00:01]} 37. Bc3 {[%emt 0:00:03]} h4 {[%emt 0:00:05]
} 38. Bxe5 {[%emt 0:00:01]} hxg3 {[%emt 0:00:01]} 39. hxg3 {[%emt 0:00:01]} Rh6
{[%emt 0:00:02]} 40. g4 {[%emt 0:00:06]} Nh4 {[%emt 0:00:04]} 41. Ke3 {[%emt 0:
00:05]} Re6 {[%emt 0:00:05]} 42. Kxe4 {[%emt 0:00:06]} Rc6 {[%emt 0:00:15]} 43.
Bc3 {[%emt 0:00:03]} Rc4+ 44. Kd5 {[%emt 0:00:02]} Rxg4 {[%emt 0:00:02]} 45.
Rxg7 {[%emt 0:00:01]} Rf4 {[%emt 0:00:01]} 46. Re7 {[%emt 0:00:05]} Nf5 {
[%emt 0:00:02]} 47. Re4 {[%emt 0:00:02]} Rf2 {[%emt 0:00:01]} 48. a4 {[%emt 0:
00:04]} Rxc2 {[%emt 0:00:02]} 49. a5 {[%emt 0:00:00]} Kb7 {[%emt 0:00:01]} 50.
Kc5 {[%emt 0:00:04]} Rc1 {[%emt 0:00:02]} 51. Re5 {[%emt 0:00:02]} Ng3 {
[%emt 0:00:06]} 52. Kb5 {[%emt 0:00:02]} Ra1 {[%emt 0:00:01]} 53. a6+ {[%emt 0:
00:03]} Ka8 {[%emt 0:00:02]} 54. Kb6 {[%emt 0:00:02]} 1-0